Cogmind - Beta 16 @@@ ROGUE MODE // 2025.12.02 @ 17:15:00 Player: lvl5hm Result: Destroyed by MJ-Z45(R) with Subdweller Beam Cannon Performance ------------- Evolutions (0) 0 Regions Visited (2) 400 Robots Destroyed (32) 160 Value Destroyed (647) 647 Prototype IDs (0) 0 Alien Tech Used (0) 0 Bonus (0) 0 TOTAL SCORE: 1207 Bonus ------- None Cogmind --------- Core Integrity 0/250 Matter 168/300 Energy 180/200 System Corruption 0% Temperature Cool (41) Movement Treading (340) Ox2 Location -10/Subcaves Parts ------- > --- POWER (1) -------- Subdweller Power Source > --- PROPULSION (2) --- Light Treads Spiked Treads > --- UTILITY (2) ------ Huge Storage Unit Seismic Detector > --- WEAPON (2) ------- Subdweller Beam Cannon Subdweller Beam Cannon > --- INVENTORY (25) --- Ion Engine Light Treads Light Treads Light Treads Subdweller Monowheel Heat Sink High-capacity Storage Unit Structural Scanner Seismic Detector Beam Rifle Beam Rifle Subdweller Laser Beam Cannon Subdweller Beam Cannon Heavy Assault Rifle Heavy Assault Rifle Heavy Assault Rifle Heavy Assault Rifle Heavy Assault Rifle Heavy Assault Rifle Grenade Launcher Subdweller Shrapnel Launcher Maul Peak State ------------ > --- POWER ------------ Subdweller Power Source > --- PROPULSION ------- Light Treads Spiked Treads > --- UTILITY ---------- Huge Storage Unit Seismic Detector > --- WEAPON ----------- Subdweller Beam Cannon Subdweller Beam Cannon > --- INVENTORY -------- Ion Engine Ion Engine Light Treads Light Treads Light Treads Subdweller Monowheel Heat Sink High-capacity Storage Unit Structural Scanner Seismic Detector Beam Rifle Beam Rifle Subdweller Laser Beam Cannon Heavy Assault Rifle Heavy Assault Rifle Heavy Assault Rifle Heavy Assault Rifle Heavy Assault Rifle Heavy Assault Rifle Grenade Launcher Subdweller Shrapnel Launcher Maul [Rating: 14] Favorites ----------- Power Subdweller Power Source Engine Subdweller Power Source Propulsion Light Treads Treads Light Treads Utility Huge Storage Unit Device Seismic Detector Storage Huge Storage Unit Weapon Subdweller Beam Cannon Energy Gun Subdweller Laser Energy Cannon Subdweller Beam Cannon Ballistic Gun Heavy Assault Rifle Launcher Subdweller Shrapnel Launcher Impact Weapon Maul Build | -11 -10 -10 ------- Run | Yrd Mat Sub Slots Evolved . | . . . Power . | . . . Propulsion . | . . . Utility . | . . . Weapon . | . . . Parts Attached 25 | 9 5 11 Power 3 | 1 . 2 Engine 3 | 1 . 2 Core . | . . . Reactor . | . . . Propulsion 5 | 2 . 3 Treads 5 | 2 . 3 Leg . | . . . Wheel . | . . . Hover . | . . . Flight . | . . . Utility 6 | 4 1 1 Device 4 | 3 . 1 Storage 2 | 1 1 . Processor . | . . . Hackware . | . . . Protection . | . . . Artifact . | . . . Weapon 11 | 2 4 5 Energy Gun 1 | . . 1 Energy Cannon 4 | . 1 3 Ballistic Gun 4 | 2 2 . Ballistic Cannon . | . . . Launcher 1 | . . 1 Special Weapon . | . . . Impact Weapon 1 | . 1 . Slashing Weapon . | . . . Piercing Weapon . | . . . Special Melee Weapon . | . . . Unidentified Prototypes . | . . . Parts Lost 1 | . . 1 Power . | . . . Propulsion 1 | . . 1 Utility . | . . . Weapon . | . . . Highest Loss Streak 1 | . . 1 To Critical Strikes . | . . . Average Backups 18 | . 12 22 Power 1 | . . 1 Propulsion 3 | . 2 3 Utility 3 | . 2 4 Weapon 10 | . 6 12 Tool/Special . | . . . Unused Backups 14 | . 1 13 Power . | . . . Propulsion 2 | . . 2 Utility 2 | . . 2 Weapon 10 | . 1 9 Tool/Special . | . . . Average Slot Usage (%) 100 | . 100 100 Engine 14 | . 14 14 Treads 28 | . 28 28 Device 14 | . 14 14 Storage 14 | . 14 14 Energy Cannon 14 | . . 19 Ballistic Gun 8 | . 27 1 Impact Weapon 4 | . . 5 Peak Build Rating 14 | 7 11 14 Average Rating 12 | 5 9 13 On Entrance 6 | . 7 11 Avg Prop Armor Cover (%) . | . . . Naked Turns . | . . . Heaviest Build 102 | 15 92 102 Greatest Support 40 | 40 40 40 Greatest Overweight (x) 2 | 2 2 2 Average Overweight (x) 1 | . 1 2 Largest Inventory Capacity 25 | 8 25 25 Average Capacity 24 | 7 24 25 Most Carried 23 | 2 19 23 Average Carried 19 | . 12 22 Final Capacity 25 | 8 25 25 Final Carried 23 | 1 19 23 Class Distribution -------------------- 100% | Mutant Dominant Class ---------------- Mutant | -10/Materials Mutant | -10/Subcaves Resources | -11 -10 -10 ----------- Run | Yrd Mat Sub Matter Collected 1041 | 386 306 349 Remotely . | . . . Salvage Created 835 | 115 461 259 Parts 65 | 12 31 22 Haulers Intercepted 1 | . 1 . Recyclers Shooed 2 | . 2 . Parts Field Recycled . | . . . Retrieved Matter . | . . . Parts Self-Destructed 7 | . . 7 Prevented . | . . . Parts Restored . | . . . Kills | -11 -10 -10 ------- Run | Yrd Mat Sub Combat Hostiles Destroyed 20 | . 11 9 Guns 12 | . 11 1 Cannons 4 | . . 4 AOE 4 | . . 4 Classes Destroyed 9 | 3 4 2 Worker 3 | 1 2 . Tunneler 3 | 3 . . Hauler 1 | . 1 . Recycler 2 | 1 1 . Turret 2 | . . 2 Watcher 1 | . 1 . Swarmer 9 | . 6 3 Grunt 5 | . 5 . Subdweller 6 | . . 6 Best Kill Streak 6 | 3 6 6 Combat Bots Only 5 | . 5 4 Max Kills in Single Turn 2 | 2 2 2 Gunslinging . | . . . Exploded 2 | . . 2 Melee . | . . . Uniques/NPCs Destroyed . | . . . Combat | -11 -10 -10 -------- Run | Yrd Mat Sub Hostile Shots Fired 117 | . 48 69 Missed 34 | . 9 25 Hits 83 | . 39 44 Projectile 83 | . 39 44 Damage Taken 1037 | . 348 689 Core 262 | . 99 163 Absorbed by Shields . | . . . Core Remaining (%) 100 | 100 . . Volleys Fired 95 | 21 37 37 Largest 2 | 2 2 2 Hottest 160 | 40 60 160 Shots Fired 177 | 42 73 62 Gun 146 | 42 72 32 Cannon 22 | . 1 21 Launcher 9 | . . 9 Special . | . . . Kinetic 155 | 42 72 41 Thermal 22 | . 1 21 Explosive . | . . . Electromagnetic . | . . . Robot Hit Streak 14 | 6 10 14 Robot Miss Streak 4 | 1 4 3 Penetration Max . | . . . Secondary Targets . | . . . Shots Hit Robots 106 | 29 41 36 Core Hits 41 | 6 19 16 Critical Kills . | . . . Critical Parts Destroyed . | . . . Critical Strikes 1 | . . 1 Destroy 1 | . . 1 Melee Attacks 11 | . 1 10 Impact 11 | . 1 10 Slashing . | . . . Piercing . | . . . Sneak Attacks . | . . . Combat Hostiles . | . . . Follow-up Attacks . | . . . Damage Inflicted 2174 | 370 683 1121 Guns 1443 | 370 683 390 Cannons 247 | . . 247 Explosions 484 | . . 484 Melee . | . . . Ramming . | . . . Kinetic 1927 | 370 683 874 Thermal 247 | . . 247 Explosive . | . . . Electromagnetic . | . . . Impact . | . . . Slashing . | . . . Piercing . | . . . Highest Corruption . | . . . Average Corruption . | . . . Corruption Purged . | . . . Corruption Blocked . | . . . Overload Shots . | . . . Overflow Damage 14 | . . 14 Projectiles . | . . . Explosions 14 | . . 14 Melee . | . . . Knockbacks . | . . . Impact . | . . . Kinetic . | . . . Secondary . | . . . Self-Inflicted Damage . | . . . Shots . | . . . Rammed . | . . . Targets Rammed . | . . . Kicked . | . . . Crushed . | . . . Highest Temperature 72 | . 20 72 Average Temperature 20 | . 4 25 Received Heat Transfer 243 | . 60 183 Siege Activations . | . . . Martial Activations . | . . . Shielding Activations . | . . . Robots Disrupted . | . . . Combat Hostiles . | . . . Robots Corrupted . | . . . Combat Hostiles . | . . . Parts Fried . | . . . Impact Corruptions . | . . . Robots Melted . | . . . Combat Hostiles . | . . . Parts Melted . | . . . Heat Transferred 333 | . . 333 Parts Sabotaged . | . . . Parts Stolen . | . . . Parts Stripped . | . . . Power Chain Reactions . | . . . Alert | -11 -10 -10 ------- Run | Yrd Mat Sub Maximum Alert Level 1 | . 1 . Low Security (%) 97 | 100 97 . Level 1 2 | . 2 . Level 2 . | . . . Level 3 . | . . . Level 4 . | . . . Level 5 . | . . . High Security . | . . . Max Security . | . . . Peak Influence 210 | 5 210 . Initial . | . . . Average 68 | 1 74 . Influence Increases 665 | 25 360 280 Destroy 0b10 Robot/C 320 | . 220 100 Destroy 0b10 Robot/NC 50 | 25 25 . Destroy Leader 44 | . 44 . Successful Hack 9 | . 9 . Disable Machine 30 | . 30 . Destroy Structure 2 | . 2 . Partial Spotted 15 | . 15 . Lose Combat Pursuer 195 | . 15 180 Influence Decreases 455 | 25 272 158 Entered New Map 43 | . . 43 Time Decay 412 | 25 272 115 Squads Dispatched 1 | . 1 . Investigation . | . . . Extermination . | . . . Reinforcement 1 | . 1 . Assault . | . . . Garrison . | . . . Intercept . | . . . Searches Triggered . | . . . Construction Impeded . | . . . Haulers Reinforced . | . . . Active Scanning Responses . | . . . Cargo Convoy Interrupts . | . . . Stealth | -11 -10 -10 --------- Run | Yrd Mat Sub Distress Signals 1 | . 1 . Communications Jammed . | . . . Distress Signals . | . . . Times Spotted 35 | . 25 10 Peak Tracking Total 7 | . 7 6 Tactical Retreats 3 | . 1 2 Traps | -11 -10 -10 ------- Run | Yrd Mat Sub Traps Triggered 1 | . . 1 Indirectly . | . . . Trap Hack Attempts . | . . . Triggered . | . . . Disarmed . | . . . Reprogrammed . | . . . Reused . | . . . Traps Extracted . | . . . Installed . | . . . Triggered . | . . . Machines | -11 -10 -10 ---------- Run | Yrd Mat Sub Machines Disabled 6 | . 2 4 Max in Single Turn 4 | . 1 4 Machines Repaired . | . . . Machines Dismantled . | . . . Machines Sabotaged . | . . . Overloaded Fab Kills . | . . . Hacking | -11 -10 -10 --------- Run | Yrd Mat Sub Machines Accessed 5 | . 5 . Terminals 5 | . 5 . Fabricators . | . . . Repair Stations . | . . . Recycling Units . | . . . Scanalyzers . | . . . Garrison Access . | . . . Total Hacks 14 | . 14 . Successful 4 | . 4 . Failed 10 | . 10 . Catastrophic 1 | . 1 . Database Lockouts . | . . . Manual 14 | . 14 . Terminals 14 | . 14 . Fabricators . | . . . Repair Stations . | . . . Recycling Units . | . . . Scanalyzers . | . . . Garrison Access . | . . . Terminal Hacks 1 | . 1 . Part Schematic 1 | . 1 . Fabricator Hacks . | . . . Repair Station Hacks . | . . . Recycling Unit Hacks . | . . . Scanalyzer . | . . . Garrison Access Hacks . | . . . Unauthorized Hacks 3 | . 3 . Terminals 3 | . 3 . Assimilate 1 | . 1 . Botnet 2 | . 2 . Fabricators . | . . . Repair Stations . | . . . Recycling Units . | . . . Scanalyzers . | . . . Garrison Access . | . . . Data Cores Recovered . | . . . Used . | . . . Hacking Detections 4 | . 4 . Full Trace Events . | . . . Feedback Events . | . . . Feedback Blocked . | . . . Robot Schematics Acquired . | . . . Robots Built . | . . . Authchips . | . . . Time . | . . . Total Robot Build Rating . | . . . Part Schematics Acquired 1 | . 1 . Parts Built . | . . . Authchips . | . . . Time . | . . . Total Part Build Rating . | . . . Part Studies Acquired . | . . . Parts Repaired . | . . . Time . | . . . Parts Recycled . | . . . Recycled Matter . | . . . Retrieved Matter . | . . . Retrieved Components . | . . . Parts Scanalyzed . | . . . Part Schematics Acquired . | . . . Parts Damaged . | . . . Bothacking | -11 -10 -10 ------------ Run | Yrd Mat Sub Used RIF Installer . | . . . Robots Hacked . | . . . Non-combat . | . . . Combat . | . . . Robot Hacks Applied . | . . . Relay Couplers Released . | . . . Fabnet Peak Effective % . | . . . Robots Rewired . | . . . Allies Hacked . | . . . Hacks Repelled . | . . . Allies | -11 -10 -10 -------- Run | Yrd Mat Sub Total Allies . | . . . Largest Group . | . . . Highest-Rated Group . | . . . Highest-Rated Ally . | . . . Total Orders . | . . . Ally Attacks . | . . . Total Damage . | . . . Kills . | . . . Allies Corrupted . | . . . Allies Melted . | . . . Intel | -11 -10 -10 ------- Run | Yrd Mat Sub Active Infowar (turns) 6087 | 65 1649 4373 Seismic 6087 | 65 1649 4373 Robot Analysis Total . | . . . Derelict Logs Recovered 2 | . . 2 Drone Launches . | . . . Drone Recoveries . | . . . Exploration | -11 -10 -10 ------------- Run | Yrd Mat Sub Turns Passed 6342 | 148 1649 4545 Spaces Moved 1583 | 47 441 1095 Core 9 | 9 . . Treads 1574 | 38 441 1095 Legs . | . . . Wheels . | . . . Hover . | . . . Flight . | . . . Fastest Speed 50 | 50 160 320 Average Speed 323 | 146 311 335 Slowest Speed 340 | 160 320 340 Overloaded Moves . | . . . Propulsion Burnouts . | . . . Robots Hopped . | . . . Potential Cave-ins . | . . . Cave-ins Triggered . | . . . Exploration Rate (%) 42 | 5 71 52 Regions Visited 2 Branch Regions 1 Pre-discovered Areas 1 | . . 1 Known Exits Taken . | . . . Unknown Exits Taken 2 | 1 1 . Scrap Searched 2 | . . 2 Spaces Dug 2 | . 1 1 Terrain Destroyed 63 | . 1 62 Melee 2 | . 1 1 Projectile 2 | . . 2 AOE 59 | . . 59 Terrain Rammed . | . . . Walls Destroyed . | . . . Machines Disabled . | . . . Actions | -11 -10 -10 --------- Run | Yrd Mat Sub Total 2596 | 80 642 1874 Wait 843 | 2 134 707 Move 1581 | 46 440 1095 Hop . | . . . Pick Up 23 | 1 19 3 Fast Attach 8 | 7 . 1 Attach 1 | . . 1 Detach 1 | . . 1 Swap 27 | 2 7 18 Drop 6 | 1 4 1 Fire 95 | 21 37 37 Melee 11 | . 1 10 Ram . | . . . Kick . | . . . Crush . | . . . Escape Stasis . | . . . Rewire . | . . . Trap . | . . . Miscellaneous . | . . . Route ------- -11/Scrapyard -10/Materials (discovered 2 exits: [*Min] / [*Sub]) -10/Subcaves (discovered 2 exits: [*Mat] / [*Rec]) History --------- Turn | Location | Event 23 | -11/Scrapyard | Discovered new exit (range 16) 149 | -11/Scrapyard | Entered Materials 305 | -10/Materials | Build established: Mutant 939 | -10/Materials | Discovered new exit (range 8) 1697 | -10/Materials | Discovered new exit (range 12) 1798 | -10/Materials | Entered Subcaves 1953 | -10/Subcaves | Core integrity fell below 50% 1976 | -10/Subcaves | Learned location of Storage (-8) 2023 | -10/Subcaves | Learned Materials emergency access door positions 2170 | -10/Subcaves | Shifting Twisted Machinery released Sub. Beam Cannon 2170 | -10/Subcaves | Shifting Twisted Machinery released Sub. Beam Cannon 3111 | -10/Subcaves | Discovered new exit (range 15) 4499 | -10/Subcaves | Shifting Twisted Machinery released Sub. Laser 4785 | -10/Subcaves | Core integrity fell below 20% 4842 | -10/Subcaves | Discovered new exit (range 15) 6343 | -10/Subcaves | Destroyed by MJ-Z45(R) with Subdweller Beam Cannon Last Messages --------------- Sink. 05202_ Subatomizers dissect the Sub. Beam Cannon. 05222_ ZT-EXI(R) destroyed. 05228_ Acquired 33 matter. 05235_ Acquired Sub. Beam Cannon. 05257_ Acquired 56 matter. 05258_ Subatomizers dissect the Disposable Heat Sink. 05308_ Subatomizers dissect the Sub. Optics. 05461_ Subatomizers dissect the Disposable Heat Sink. 06122_ VP-0FZ(R) destroyed. 06125_ Subatomizers dissect the Sub. Monowheel. 06132_ Acquired 39 matter. 06136_ Subatomizers dissect the Sub. Monowheel. 06338_ Sub. Beam Cannon shoots sparks and powers down. Map ----- +----------------------------------------------------+ | ?????????????????????????????????????????????????? | | ?????????????????????????????????????????????????? | | ?????????????????????????????????????????????????? | | ?????????????????????????????????????????????????? | | ?????????????????????????????????????????????????? | | ????????????????????????????????????#####????????? | | ??????????????????????????????#####?# ##???????? | | ???????????????????????###????# ### % #???????? | | ??????????????????????## ##??##% ## ##??????? | | ??????????????????????# #### #??????? | | ??????????????????????# ## #??????? | | ?????????????????????## < #??????? | | ?????????????????????# #??????? | | ?????????????????????# ##??????? | | ?????????????????????# ### #???????? | | ?????????????????????## #?# ##??????? | | ?????????????? ???????## ### #??????? | | ???????????????" ??????# ## ##?????? | | ???????????????#" ?????# " ##### #?????? | | ???????????????#"" ##### """ ##??## ##?????? | | ??????????????# "" R ##### ###?# #??????? | | ?????????????# """ #???# #?## ##?????? | | ??????????????? ## "" ###### #### #?????? | | ??????????????????## "" " "### #"""" ##?????? | | ???????????????????## "## """ # #"" ^ ####### | | ????????????????????###?#@ #### ## # | | ???????????????????????""" ##??####" | | ??????????????????????#""""#??????#""" ^^ ^ | | ??????????????????????#""""#??????####^ ^ ^#### | | ??????????????????????##" ##?????????# ^^ ^ ##??? | | ???????????????????????####??????????# #######???? | | ?????????????????????????????????????###?????????? | | ?????????????????????????????????????????????????? | | ?????????????????????????????????????????????????? | | ?????????????????????????????????????????????????? | | ?????????????????????????????????????????????????? | | ?????????????????????????????????????????????????? | | ?????????????????????????????????????????????????? | | ?????????????????????????????????????????????????? | | ?????????????????????????????????????????????????? | | ?????????????????????????????????????????????????? | | ?????????????????????????????????????????????????? | | ?????????????????????????????????????????????????? | | ?????????????????????????????????????????????????? | | ?????????????????????????????????????????????????? | | ?????????????????????????????????????????????????? | | ?????????????????????????????????????????????????? | | | | | | | +----------------------------------------------------+ Best States ------------- Heat Dissipation 35 Energy Generation 15 Energy Capacity 250 Matter Stores 300 Matter Capacity 300 Sight Range 16 Terrain Scan Density 10 Evasion (%) 40 Recoil Reduction 2 Item Schematics ----------------- Assault Rifle | -10/Materials | Hacked Robot Schematics ------------------ None Fabricated ------------ Nothing Repaired ---------- Nothing Studied --------- None Alien Tech Used ----------------- None Achievements -------------- None Challenges ------------ None Game ------ Seed RecyclingMinesnifferUnit Manual? 0 Play Time 00:20:18 Cumulative 264.6 hours Start 2025.12.02 @ 13:35:38 End 2025.12.02 @ 17:15:00 Sessions 2 Manual Loads 0 Difficulty Rogue Special Mode None Game No. 194 Rogue 194 Adventurer 0 Explorer 0 Win Type - Total 12 Types 7/0/2/1/0/0/0/1/0/1 Lore% 70 Gallery% 75 Achievement% 69 Wizard Run 0 Options --------- Layout 2 ASCII 0 Keyboard 1 Movement Arrows Keybinds 0 Fullscreen 1 Font 32/Tamsyn Map View 50x44 Zoom Use 0% Tactical HUD 1 Map Filters NONE Filters NONE Steam 1 RUN: a3762b6f-25a9-47cd-8281-6f53c45032ef